[Event "Late-Titled-Tuesday-Blitz-March-12-2024"]
[Site "Chess.com"]
[Date "2024.03.12"]
[Round "4"]
[White "mbojan"]
[Black "GMBenjaminBok"]
[Result "1-0"]
[WhiteElo "2895"]
[BlackElo "3027"]
[TimeControl "180+1"]
[EndTime "14:37:24 PDT"]
[Termination "mbojan won by resignation"]

1. a3 {[%clk 0:03:00.9]} 1... d5 {[%clk 0:02:58.6]} 2. h3 {[%clk 0:03:00.1]}
2... e5 {[%clk 0:02:57.8]} 3. e3 {[%clk 0:03:00.6]} 3... Nf6 {[%clk 0:02:51.1]}
4. d4 {[%clk 0:03:00.8]} 4... Nbd7 {[%clk 0:02:39.3]} 5. c4 {[%clk 0:03:00.1]}
5... dxc4 {[%clk 0:02:28.7]} 6. Bxc4 {[%clk 0:03:01]} 6... Bd6 {[%clk
0:02:26.1]} 7. Nc3 {[%clk 0:02:59.4]} 7... O-O {[%clk 0:02:21.2]} 8. Nf3 {[%clk
0:02:58.8]} 8... exd4 {[%clk 0:02:20.5]} 9. Nxd4 {[%clk 0:02:59]} 9... Ne5
{[%clk 0:02:12.1]} 10. Be2 {[%clk 0:02:58.9]} 10... c6 {[%clk 0:02:00.1]} 11.
Qc2 {[%clk 0:02:57.9]} 11... Ng6 {[%clk 0:01:37.7]} 12. Bd2 {[%clk 0:02:41.5]}
12... Re8 {[%clk 0:01:22.1]} 13. Rd1 {[%clk 0:02:40.3]} 13... Qc7 {[%clk
0:01:13.2]} 14. Bc1 {[%clk 0:02:10.6]} 14... a6 {[%clk 0:01:11.4]} 15. O-O
{[%clk 0:02:06.2]} 15... Bd7 {[%clk 0:01:07.4]} 16. Nf5 {[%clk 0:02:04.1]} 16...
Bh2+ {[%clk 0:00:52.9]} 17. Kh1 {[%clk 0:02:04.2]} 17... Be5 {[%clk 0:00:53.8]}
18. Bd3 {[%clk 0:02:03.1]} 18... Rad8 {[%clk 0:00:49.7]} 19. Ne2 {[%clk
0:02:00.7]} 19... Ne7 {[%clk 0:00:26.5]} 20. Nfg3 {[%clk 0:01:48.1]} 20... Bc8
{[%clk 0:00:24.1]} 21. f4 {[%clk 0:01:48]} 21... Bd6 {[%clk 0:00:23.9]} 22. e4
{[%clk 0:01:48.7]} 22... Ng6 {[%clk 0:00:12.3]} 23. e5 {[%clk 0:01:49.3]} 23...
Nxe5 {[%clk 0:00:12.9]} 24. fxe5 {[%clk 0:01:50.2]} 24... Bxe5 {[%clk
0:00:13.8]} 25. Nf4 {[%clk 0:01:41.5]} 25... h6 {[%clk 0:00:12.1]} 26. Ngh5
{[%clk 0:01:35.9]} 26... Nxh5 {[%clk 0:00:10.3]} 27. Nxh5 {[%clk 0:01:36.8]}
27... Qe7 {[%clk 0:00:09.3]} 28. Qf2 {[%clk 0:01:35.2]} 28... Be6 {[%clk
0:00:08.1]} 29. Bb1 {[%clk 0:01:34.9]} 29... Rxd1 {[%clk 0:00:06.3]} 30. Rxd1
{[%clk 0:01:35.8]} 30... Rd8 {[%clk 0:00:05.6]} 31. Re1 {[%clk 0:01:35.6]} 31...
Bb8 {[%clk 0:00:05.1]} 32. Qc2 {[%clk 0:01:33.9]} 32... g6 {[%clk 0:00:03.8]}
33. Nf4 {[%clk 0:01:34.4]} 33... Qh4 {[%clk 0:00:03.3]} 34. Rxe6 {[%clk
0:01:00.1]} 34... fxe6 {[%clk 0:00:02.7]} 35. Qxg6+ {[%clk 0:00:28.8]} 35... Kf8
{[%clk 0:00:03.2]} 36. g3 {[%clk 0:00:29.6]} 36... Qe7 {[%clk 0:00:01.1]} 37.
Nxe6+ {[%clk 0:00:29.4]} 1-0

[Event "Late-Titled-Tuesday-Blitz-March-12-2024"]
[Site "Chess.com"]
[Date "2024.03.12"]
[Round "4"]
[White "zverr1"]
[Black "jstopa4"]
[Result "0-1"]
[WhiteElo "2569"]
[BlackElo "2751"]
[TimeControl "180+1"]
[EndTime "14:37:24 PDT"]
[Termination "jstopa4 won on time"]

1. e4 {[%clk 0:03:00.9]} 1... e6 {[%clk 0:02:52.9]} 2. d4 {[%clk 0:02:59.6]}
2... d5 {[%clk 0:02:53.2]} 3. Nc3 {[%clk 0:03:00.4]} 3... Nf6 {[%clk 0:02:53.2]}
4. Bg5 {[%clk 0:03:00.1]} 4... Bb4 {[%clk 0:02:53.5]} 5. e5 {[%clk 0:02:57.4]}
5... h6 {[%clk 0:02:53.8]} 6. Bd2 {[%clk 0:02:57.7]} 6... Bxc3 {[%clk
0:02:53.9]} 7. Bxc3 {[%clk 0:02:58.6]} 7... Ne4 {[%clk 0:02:54]} 8. Bd2 {[%clk
0:02:59.4]} 8... Nxd2 {[%clk 0:02:45.9]} 9. Qxd2 {[%clk 0:02:59.6]} 9... c5
{[%clk 0:02:46.1]} 10. Nf3 {[%clk 0:02:36.4]} 10... cxd4 {[%clk 0:02:30.5]} 11.
Nxd4 {[%clk 0:02:36.2]} 11... Nc6 {[%clk 0:02:29.3]} 12. Bb5 {[%clk 0:02:35]}
12... Qb6 {[%clk 0:02:23.4]} 13. Bxc6+ {[%clk 0:02:32.8]} 13... bxc6 {[%clk
0:02:23.7]} 14. O-O {[%clk 0:02:26.7]} 14... O-O {[%clk 0:02:21.2]} 15. a3
{[%clk 0:02:03.6]} 15... c5 {[%clk 0:02:17.4]} 16. Nf3 {[%clk 0:02:01.3]} 16...
Bb7 {[%clk 0:02:09.3]} 17. c3 {[%clk 0:01:45.7]} 17... Rfd8 {[%clk 0:02:08.8]}
18. Rfd1 {[%clk 0:01:41.9]} 18... d4 {[%clk 0:02:01.6]} 19. Qe2 {[%clk
0:01:34.4]} 19... Ba6 {[%clk 0:01:50.1]} 20. c4 {[%clk 0:00:33.3]} 20... Qb3
{[%clk 0:01:49.1]} 21. Rac1 {[%clk 0:00:28.6]} 21... Rab8 {[%clk 0:01:48.9]} 22.
Rd2 {[%clk 0:00:26.6]} 22... Rd7 {[%clk 0:01:44.2]} 23. h4 {[%clk 0:00:19.6]}
23... Bb7 {[%clk 0:01:34.5]} 24. Qd1 {[%clk 0:00:10.9]} 24... Qxd1+ {[%clk
0:01:26.5]} 25. Rcxd1 {[%clk 0:00:11.8]} 25... Ba6 {[%clk 0:01:13.6]} 26. b4
{[%clk 0:00:09.9]} 26... cxb4 {[%clk 0:01:09.3]} 27. axb4 {[%clk 0:00:10.3]}
27... Rxb4 {[%clk 0:01:06.5]} 28. Rxd4 {[%clk 0:00:10.3]} 28... Rxd4 {[%clk
0:01:05.2]} 29. Rxd4 {[%clk 0:00:11.2]} 29... Rxc4 {[%clk 0:01:00.6]} 30. Rd8+
{[%clk 0:00:09.2]} 30... Kh7 {[%clk 0:01:01]} 31. Rd7 {[%clk 0:00:09.9]} 31...
Rf4 {[%clk 0:00:49.7]} 32. Rxa7 {[%clk 0:00:07.8]} 32... Be2 {[%clk 0:00:49.5]}
33. Ra3 {[%clk 0:00:04.1]} 33... Bxf3 {[%clk 0:00:43.7]} 34. gxf3 {[%clk
0:00:03.5]} 34... Rxh4 {[%clk 0:00:40.7]} 35. Kg2 {[%clk 0:00:01.7]} 35... g5
{[%clk 0:00:40.5]} 36. Rd3 {[%clk 0:00:01.2]} 36... Rf4 {[%clk 0:00:40]} 37. Re3
{[%clk 0:00:01.7]} 37... Kg6 {[%clk 0:00:40.1]} 38. Kg3 {[%clk 0:00:02.4]} 38...
Kf5 {[%clk 0:00:39.8]} 39. Re2 {[%clk 0:00:02.2]} 39... Rd4 {[%clk 0:00:39.8]}
40. Re3 {[%clk 0:00:01.6]} 40... Rd5 {[%clk 0:00:40.1]} 0-1

[Event "Late-Titled-Tuesday-Blitz-March-12-2024"]
[Site "Chess.com"]
[Date "2024.03.12"]
[Round "4"]
[White "Eliteplayer3"]
[Black "imdvb6307"]
[Result "0-1"]
[WhiteElo "2245"]
[BlackElo "2502"]
[TimeControl "180+1"]
[EndTime "14:37:24 PDT"]
[Termination "imdvb6307 won by resignation"]

1. e4 {[%clk 0:03:00.9]} 1... Nc6 {[%clk 0:02:59.5]} 2. Nf3 {[%clk 0:02:59.8]}
2... d6 {[%clk 0:02:59.6]} 3. d4 {[%clk 0:02:58]} 3... Nf6 {[%clk 0:02:59.2]} 4.
Nc3 {[%clk 0:02:56.3]} 4... Bg4 {[%clk 0:02:58.6]} 5. Be2 {[%clk 0:02:51.7]}
5... e5 {[%clk 0:02:57.8]} 6. d5 {[%clk 0:02:48.8]} 6... Ne7 {[%clk 0:02:58]} 7.
h3 {[%clk 0:02:46]} 7... Bd7 {[%clk 0:02:57.5]} 8. Be3 {[%clk 0:02:41.5]} 8...
g6 {[%clk 0:02:50.6]} 9. Qd2 {[%clk 0:02:39.6]} 9... Bg7 {[%clk 0:02:47.2]} 10.
O-O-O {[%clk 0:02:38.4]} 10... O-O {[%clk 0:02:47]} 11. Bh6 {[%clk 0:02:34]}
11... b5 {[%clk 0:02:42]} 12. Nxb5 {[%clk 0:02:26]} 12... Nxe4 {[%clk 0:02:40]}
13. Bxg7 {[%clk 0:01:56.1]} 13... Nxd2 {[%clk 0:02:39.4]} 14. Bxf8 {[%clk
0:01:56.3]} 14... Nxf3 {[%clk 0:02:29.8]} 15. Bxe7 {[%clk 0:01:54.8]} 15... Qxe7
{[%clk 0:02:29.6]} 16. gxf3 {[%clk 0:01:54]} 16... Rb8 {[%clk 0:02:22.9]} 17.
Nc3 {[%clk 0:01:20.9]} 17... Qg5+ {[%clk 0:02:20.4]} 18. Kb1 {[%clk 0:01:20.4]}
18... Qh4 {[%clk 0:02:20.7]} 19. a3 {[%clk 0:01:16.6]} 19... Qxf2 {[%clk
0:02:20]} 20. Rde1 {[%clk 0:01:06.5]} 20... Qb6 {[%clk 0:02:09.9]} 21. b3 {[%clk
0:01:02.8]} 21... Bf5 {[%clk 0:01:59]} 22. Ne4 {[%clk 0:00:56.6]} 22... Qd4
{[%clk 0:01:49.9]} 23. Bd3 {[%clk 0:00:34.5]} 23... Rxb3+ {[%clk 0:01:41.3]} 24.
cxb3 {[%clk 0:00:35.4]} 24... Qxd3+ {[%clk 0:01:41.5]} 25. Kb2 {[%clk
0:00:34.4]} 25... Qxf3 {[%clk 0:01:39.6]} 26. Nc3 {[%clk 0:00:29.2]} 26... Qg2+
{[%clk 0:01:38.1]} 27. Ka1 {[%clk 0:00:26.6]} 27... Qc2 {[%clk 0:01:37.7]} 28.
Nb1 {[%clk 0:00:20.1]} 28... Qxb3 {[%clk 0:01:34.2]} 29. Re2 {[%clk 0:00:20.2]}
29... Qxd5 {[%clk 0:01:30.4]} 30. Rc1 {[%clk 0:00:18.5]} 30... Qd4+ {[%clk
0:01:21.5]} 31. Rb2 {[%clk 0:00:16.4]} 31... c5 {[%clk 0:00:57]} 32. Nc3 {[%clk
0:00:15.5]} 32... d5 {[%clk 0:00:52.2]} 33. Ne2 {[%clk 0:00:04.7]} 33... Qa4
{[%clk 0:00:42]} 34. Ka2 {[%clk 0:00:03.6]} 34... d4 {[%clk 0:00:39.3]} 35. Rxc5
{[%clk 0:00:02.5]} 35... Be6+ {[%clk 0:00:38.9]} 36. Kb1 {[%clk 0:00:02.1]}
36... Qxa3 {[%clk 0:00:37.3]} 37. Rxe5 {[%clk 0:00:03]} 37... Bf5+ {[%clk
0:00:35]} 38. Kc1 {[%clk 0:00:02.7]} 38... Qa1+ {[%clk 0:00:35]} 0-1

[Event "Late-Titled-Tuesday-Blitz-March-12-2024"]
[Site "Chess.com"]
[Date "2024.03.12"]
[Round "4"]
[White "ChessSwole"]
[Black "steepedgames"]
[Result "0-1"]
[WhiteElo "2705"]
[BlackElo "2559"]
[TimeControl "180+1"]
[EndTime "14:37:26 PDT"]
[Termination "steepedgames won by checkmate"]

1. d4 {[%clk 0:03:00.9]} 1... f5 {[%clk 0:02:57.5]} 2. g4 {[%clk 0:02:57.3]}
2... fxg4 {[%clk 0:02:55.4]} 3. e4 {[%clk 0:02:55.2]} 3... d6 {[%clk 0:02:54.5]}
4. Nc3 {[%clk 0:02:53.8]} 4... Nf6 {[%clk 0:02:54.5]} 5. h3 {[%clk 0:02:53.9]}
5... g3 {[%clk 0:02:54.1]} 6. fxg3 {[%clk 0:02:53]} 6... Nc6 {[%clk 0:02:54.7]}
7. Nf3 {[%clk 0:02:49]} 7... e6 {[%clk 0:02:48.4]} 8. Bg2 {[%clk 0:02:48.5]}
8... Be7 {[%clk 0:02:48.5]} 9. O-O {[%clk 0:02:47.7]} 9... O-O {[%clk
0:02:48.5]} 10. Be3 {[%clk 0:02:47.4]} 10... e5 {[%clk 0:02:46.6]} 11. d5 {[%clk
0:02:33.3]} 11... Nb8 {[%clk 0:02:45.7]} 12. Qe2 {[%clk 0:02:26.1]} 12... b6
{[%clk 0:02:37.8]} 13. a4 {[%clk 0:02:11]} 13... a5 {[%clk 0:02:23.1]} 14. Nh4
{[%clk 0:02:05.5]} 14... Ba6 {[%clk 0:02:17.3]} 15. Nb5 {[%clk 0:02:05.4]} 15...
Nbd7 {[%clk 0:02:17.5]} 16. Nf5 {[%clk 0:01:59.8]} 16... Nc5 {[%clk 0:02:17.5]}
17. Bxc5 {[%clk 0:01:55.2]} 17... bxc5 {[%clk 0:02:03.1]} 18. h4 {[%clk
0:01:46.9]} 18... g6 {[%clk 0:01:48.3]} 19. Ne3 {[%clk 0:01:41.5]} 19... Nd7
{[%clk 0:01:38.3]} 20. Bh3 {[%clk 0:01:38.8]} 20... Nb6 {[%clk 0:01:36.3]} 21.
c4 {[%clk 0:01:35.9]} 21... Bc8 {[%clk 0:01:25.2]} 22. Bg2 {[%clk 0:01:22]}
22... Bd7 {[%clk 0:01:21.1]} 23. b3 {[%clk 0:01:21.8]} 23... Kg7 {[%clk
0:00:44.9]} 24. Kh2 {[%clk 0:01:18.5]} 24... h5 {[%clk 0:00:43.8]} 25. Bf3
{[%clk 0:00:58.2]} 25... Bxh4 {[%clk 0:00:38.3]} 26. gxh4 {[%clk 0:00:57.9]}
26... Qxh4+ {[%clk 0:00:39.2]} 27. Kg1 {[%clk 0:00:57.2]} 27... Rf4 {[%clk
0:00:38.6]} 28. Ng2 {[%clk 0:00:49.3]} 28... Qg3 {[%clk 0:00:36.6]} 29. Qf2
{[%clk 0:00:42.7]} 29... Qg5 {[%clk 0:00:33.6]} 30. Kh2 {[%clk 0:00:34.8]} 30...
Raf8 {[%clk 0:00:33.3]} 31. Qg3 {[%clk 0:00:24.8]} 31... Qh6 {[%clk 0:00:24]}
32. Nxc7 {[%clk 0:00:22.4]} 32... h4 {[%clk 0:00:22.3]} 33. Qe1 {[%clk
0:00:18.8]} 33... Rxf3 {[%clk 0:00:22.6]} 34. Rxf3 {[%clk 0:00:18.9]} 34... Rxf3
{[%clk 0:00:22.5]} 35. Qe2 {[%clk 0:00:17.5]} 35... Bg4 {[%clk 0:00:18.8]} 36.
Qc2 {[%clk 0:00:14.8]} 36... h3 {[%clk 0:00:18.8]} 37. Ne1 {[%clk 0:00:14.2]}
37... Qf4+ {[%clk 0:00:19.1]} 38. Kh1 {[%clk 0:00:13.9]} 38... Rf1# {[%clk
0:00:19.2]} 0-1

[Event "Late-Titled-Tuesday-Blitz-March-12-2024"]
[Site "Chess.com"]
[Date "2024.03.12"]
[Round "4"]
[White "Svet_1502"]
[Black "Divljasvinja14"]
[Result "0-1"]
[WhiteElo "2224"]
[BlackElo "2496"]
[TimeControl "180+1"]
[EndTime "14:37:29 PDT"]
[Termination "Divljasvinja14 won by resignation"]

1. d4 {[%clk 0:03:00.9]} 1... Nf6 {[%clk 0:02:57.8]} 2. c4 {[%clk 0:02:58.2]}
2... g6 {[%clk 0:02:58.7]} 3. Nf3 {[%clk 0:02:56.9]} 3... Bg7 {[%clk 0:02:58.4]}
4. g3 {[%clk 0:02:57.3]} 4... c6 {[%clk 0:02:58.1]} 5. Bg2 {[%clk 0:02:58.2]}
5... d5 {[%clk 0:02:58.7]} 6. O-O {[%clk 0:02:57.7]} 6... O-O {[%clk 0:02:58.5]}
7. Ne5 {[%clk 0:02:55.6]} 7... Ng4 {[%clk 0:02:56.9]} 8. Nxg4 {[%clk 0:02:36.1]}
8... Bxg4 {[%clk 0:02:57.8]} 9. cxd5 {[%clk 0:02:28.6]} 9... cxd5 {[%clk
0:02:56.9]} 10. Nc3 {[%clk 0:02:28.5]} 10... Nc6 {[%clk 0:02:54.7]} 11. h3
{[%clk 0:02:04.5]} 11... Bd7 {[%clk 0:02:53.9]} 12. e3 {[%clk 0:01:52.9]} 12...
e6 {[%clk 0:02:47.1]} 13. a3 {[%clk 0:01:42.4]} 13... a6 {[%clk 0:02:46.6]} 14.
b4 {[%clk 0:01:37.9]} 14... Rc8 {[%clk 0:02:46.6]} 15. Bd2 {[%clk 0:01:31.2]}
15... Qe7 {[%clk 0:02:46.2]} 16. Rc1 {[%clk 0:01:23.3]} 16... Na7 {[%clk
0:02:45.7]} 17. Qb3 {[%clk 0:01:07.9]} 17... Rc4 {[%clk 0:02:34.7]} 18. Rfe1
{[%clk 0:01:00.3]} 18... Rfc8 {[%clk 0:02:33.9]} 19. Bf1 {[%clk 0:00:57.3]}
19... R4c7 {[%clk 0:02:33.9]} 20. Na4 {[%clk 0:00:51.2]} 20... Bxa4 {[%clk
0:02:29]} 21. Qxa4 {[%clk 0:00:52.1]} 21... Bf8 {[%clk 0:02:17]} 22. Rxc7 {[%clk
0:00:38.7]} 22... Rxc7 {[%clk 0:02:17.9]} 23. Rc1 {[%clk 0:00:39.1]} 23... Rxc1
{[%clk 0:02:16.1]} 24. Bxc1 {[%clk 0:00:39.3]} 24... Qc7 {[%clk 0:02:16.6]} 25.
Bd2 {[%clk 0:00:38.4]} 25... Kg7 {[%clk 0:02:12.7]} 26. Bd3 {[%clk 0:00:35.5]}
26... Bd6 {[%clk 0:02:12.4]} 27. Kg2 {[%clk 0:00:32.1]} 27... h5 {[%clk
0:02:12.4]} 28. Qc2 {[%clk 0:00:31.1]} 28... Qxc2 {[%clk 0:02:07]} 29. Bxc2
{[%clk 0:00:31]} 29... b5 {[%clk 0:02:07.5]} 30. e4 {[%clk 0:00:20]} 30... Nc8
{[%clk 0:02:06]} 31. e5 {[%clk 0:00:12.2]} 31... Be7 {[%clk 0:02:04.2]} 32. f4
{[%clk 0:00:12.3]} 32... Nb6 {[%clk 0:02:04.7]} 33. Bd3 {[%clk 0:00:12.4]} 33...
Nc4 {[%clk 0:02:05]} 34. Bxc4 {[%clk 0:00:12.6]} 34... bxc4 {[%clk 0:01:56.5]}
35. Kf3 {[%clk 0:00:11.4]} 35... Kf8 {[%clk 0:01:56.8]} 36. g4 {[%clk
0:00:11.1]} 36... hxg4+ {[%clk 0:01:57.7]} 37. hxg4 {[%clk 0:00:12]} 37... Ke8
{[%clk 0:01:58.2]} 38. f5 {[%clk 0:00:12]} 38... gxf5 {[%clk 0:01:58]} 39. gxf5
{[%clk 0:00:12.9]} 39... Kd7 {[%clk 0:01:55.4]} 40. a4 {[%clk 0:00:09.8]} 40...
exf5 {[%clk 0:01:47.7]} 41. Kf4 {[%clk 0:00:09.7]} 41... Ke6 {[%clk 0:01:47.9]}
42. Bc3 {[%clk 0:00:09.8]} 42... f6 {[%clk 0:01:42.8]} 43. exf6 {[%clk
0:00:06.8]} 43... Bxf6 {[%clk 0:01:43.7]} 44. b5 {[%clk 0:00:06.5]} 44... axb5
{[%clk 0:01:44]} 45. axb5 {[%clk 0:00:07.4]} 45... Bd8 {[%clk 0:01:43.3]} 46.
Bb4 {[%clk 0:00:04]} 46... Bc7+ {[%clk 0:01:43.5]} 47. Kf3 {[%clk 0:00:03.5]}
47... Bd6 {[%clk 0:01:42.8]} 48. Bc3 {[%clk 0:00:03.4]} 48... Kd7 {[%clk
0:01:42.8]} 49. Ba5 {[%clk 0:00:02.6]} 49... Kc8 {[%clk 0:01:42.8]} 50. Ke3
{[%clk 0:00:01.3]} 50... Kb7 {[%clk 0:01:41.7]} 51. Kf3 {[%clk 0:00:01.7]} 51...
Bc7 {[%clk 0:01:41.6]} 52. Bc3 {[%clk 0:00:01.8]} 52... Kb6 {[%clk 0:01:40.6]}
53. Ke3 {[%clk 0:00:01.9]} 53... Kxb5 {[%clk 0:01:40.8]} 54. Kf3 {[%clk
0:00:02]} 54... Ka4 {[%clk 0:01:40.8]} 55. Bd2 {[%clk 0:00:02]} 55... Kb3 {[%clk
0:01:41]} 56. Bg5 {[%clk 0:00:01.8]} 56... Kc2 {[%clk 0:01:40.5]} 57. Bf6 {[%clk
0:00:02.7]} 57... Kd3 {[%clk 0:01:40.2]} 58. Be5 {[%clk 0:00:02.6]} 58... Bb6
{[%clk 0:01:38.8]} 59. Kf4 {[%clk 0:00:02.9]} 59... Bxd4 {[%clk 0:01:39]} 60.
Bd6 {[%clk 0:00:03.3]} 60... c3 {[%clk 0:01:32.7]} 61. Kxf5 {[%clk 0:00:04.2]}
61... c2 {[%clk 0:01:32.5]} 62. Ba3 {[%clk 0:00:04.1]} 62... Be3 {[%clk
0:01:32.4]} 63. Ke6 {[%clk 0:00:04]} 63... Kc4 {[%clk 0:01:32.5]} 64. Bb2 {[%clk
0:00:03.5]} 64... c1=Q {[%clk 0:01:32.4]} 65. Bxc1 {[%clk 0:00:03.5]} 65... Bxc1
{[%clk 0:01:33.3]} 0-1

[Event "Late-Titled-Tuesday-Blitz-March-12-2024"]
[Site "Chess.com"]
[Date "2024.03.12"]
[Round "4"]
[White "Nick12772"]
[Black "ChainedDowntohell"]
[Result "0-1"]
[WhiteElo "2358"]
[BlackElo "2539"]
[TimeControl "180+1"]
[EndTime "14:37:31 PDT"]
[Termination "ChainedDowntohell won on time"]

1. Nf3 {[%clk 0:03:00.9]} 1... d5 {[%clk 0:02:58.1]} 2. g3 {[%clk 0:03:01.4]}
2... Bf5 {[%clk 0:02:48.7]} 3. Bg2 {[%clk 0:03:01.4]} 3... Nd7 {[%clk
0:02:49.1]} 4. d4 {[%clk 0:03:01.2]} 4... Nb6 {[%clk 0:02:47.3]} 5. O-O {[%clk
0:03:01]} 5... e6 {[%clk 0:02:44.9]} 6. b3 {[%clk 0:02:53.5]} 6... Nf6 {[%clk
0:02:42.3]} 7. Nbd2 {[%clk 0:02:53.1]} 7... Bb4 {[%clk 0:02:38.1]} 8. Bb2 {[%clk
0:02:52.3]} 8... Ne4 {[%clk 0:02:30.6]} 9. Nxe4 {[%clk 0:02:42.5]} 9... Bxe4
{[%clk 0:02:30]} 10. a3 {[%clk 0:02:41.9]} 10... Be7 {[%clk 0:02:26.9]} 11. Rc1
{[%clk 0:02:33.1]} 11... O-O {[%clk 0:02:23.2]} 12. c4 {[%clk 0:02:32.6]} 12...
Bf6 {[%clk 0:02:17.5]} 13. c5 {[%clk 0:02:29.6]} 13... Nd7 {[%clk 0:02:14.8]}
14. b4 {[%clk 0:02:29.9]} 14... c6 {[%clk 0:02:11.7]} 15. a4 {[%clk 0:02:28.3]}
15... Re8 {[%clk 0:02:02.7]} 16. b5 {[%clk 0:02:23]} 16... Bxf3 {[%clk
0:01:57.4]} 17. Bxf3 {[%clk 0:02:21.8]} 17... e5 {[%clk 0:01:58.3]} 18. e3
{[%clk 0:02:05.4]} 18... exd4 {[%clk 0:01:46.4]} 19. Bxd4 {[%clk 0:02:03.2]}
19... Bxd4 {[%clk 0:01:40.3]} 20. exd4 {[%clk 0:01:56.3]} 20... Qa5 {[%clk
0:01:34.7]} 21. Qb3 {[%clk 0:01:51.6]} 21... Nf8 {[%clk 0:01:31.4]} 22. bxc6
{[%clk 0:01:25.4]} 22... bxc6 {[%clk 0:01:30.4]} 23. Qb7 {[%clk 0:01:21]} 23...
Ne6 {[%clk 0:00:54]} 24. Qxc6 {[%clk 0:01:13.1]} 24... Nxd4 {[%clk 0:00:53.5]}
25. Qxd5 {[%clk 0:01:13.3]} 25... Rad8 {[%clk 0:00:47.6]} 26. Qh5 {[%clk
0:01:02.2]} 26... Re5 {[%clk 0:00:34.7]} 27. Qg4 {[%clk 0:00:46.5]} 27... h5
{[%clk 0:00:33.5]} 28. Qf4 {[%clk 0:00:19.2]} 28... Rf5 {[%clk 0:00:32.8]} 29.
Qxf5 {[%clk 0:00:19]} 29... Nxf5 {[%clk 0:00:32.6]} 30. c6 {[%clk 0:00:19.7]}
30... Nd4 {[%clk 0:00:27.3]} 31. c7 {[%clk 0:00:05.9]} 31... Rc8 {[%clk
0:00:21.1]} 32. Bb7 {[%clk 0:00:05]} 32... Rxc7 {[%clk 0:00:18.2]} 33. Rxc7
{[%clk 0:00:03.9]} 33... Qxc7 {[%clk 0:00:19.1]} 34. Be4 {[%clk 0:00:03.7]}
34... Qe5 {[%clk 0:00:16.9]} 0-1

[Event "Late-Titled-Tuesday-Blitz-March-12-2024"]
[Site "Chess.com"]
[Date "2024.03.12"]
[Round "4"]
[White "albi1999"]
[Black "Adar_07"]
[Result "0-1"]
[WhiteElo "2579"]
[BlackElo "2804"]
[TimeControl "180+1"]
[EndTime "14:37:38 PDT"]
[Termination "Adar_07 won by resignation"]

1. Nf3 {[%clk 0:02:59.8]} 1... Nf6 {[%clk 0:02:58.5]} 2. b3 {[%clk 0:02:59.4]}
2... d5 {[%clk 0:02:56]} 3. Bb2 {[%clk 0:02:59.4]} 3... Bg4 {[%clk 0:02:56.3]}
4. e3 {[%clk 0:02:59.1]} 4... Nbd7 {[%clk 0:02:55.7]} 5. c4 {[%clk 0:02:59.1]}
5... c6 {[%clk 0:02:55.6]} 6. Nc3 {[%clk 0:02:59.1]} 6... e5 {[%clk 0:02:54.2]}
7. h3 {[%clk 0:02:59]} 7... Bh5 {[%clk 0:02:51.4]} 8. cxd5 {[%clk 0:02:55.6]}
8... cxd5 {[%clk 0:02:51.3]} 9. g4 {[%clk 0:02:55.1]} 9... Bg6 {[%clk
0:02:51.2]} 10. g5 {[%clk 0:02:54.7]} 10... Ne4 {[%clk 0:02:51.5]} 11. Nxd5
{[%clk 0:02:54.6]} 11... Bd6 {[%clk 0:02:47.1]} 12. Nc3 {[%clk 0:02:46.6]} 12...
Nxg5 {[%clk 0:02:44.4]} 13. Nxg5 {[%clk 0:02:40.5]} 13... Qxg5 {[%clk
0:02:45.3]} 14. h4 {[%clk 0:02:41.4]} 14... Qd8 {[%clk 0:02:37.8]} 15. h5 {[%clk
0:02:36]} 15... Bf5 {[%clk 0:02:37.6]} 16. Qf3 {[%clk 0:02:36.3]} 16... Be6
{[%clk 0:02:34.2]} 17. Qxb7 {[%clk 0:02:33.4]} 17... O-O {[%clk 0:02:31.6]} 18.
Qg2 {[%clk 0:02:30.6]} 18... Re8 {[%clk 0:02:24.7]} 19. Ne4 {[%clk 0:02:25.4]}
19... Bf8 {[%clk 0:02:24.3]} 20. Ng5 {[%clk 0:02:24.6]} 20... Nc5 {[%clk
0:02:19.6]} 21. Nxe6 {[%clk 0:02:15.5]} 21... Rxe6 {[%clk 0:02:20.5]} 22. Bc4
{[%clk 0:02:15.1]} 22... Re8 {[%clk 0:01:31.8]} 23. Ke2 {[%clk 0:01:52.4]} 23...
Rc8 {[%clk 0:01:21]} 24. Rh3 {[%clk 0:01:28.6]} 24... Qd7 {[%clk 0:01:10.5]} 25.
Qd5 {[%clk 0:00:46.8]} 25... Qg4+ {[%clk 0:01:02.8]} 26. Qf3 {[%clk 0:00:41.5]}
26... Qd7 {[%clk 0:00:56.5]} 27. Rg3 {[%clk 0:00:36]} 27... Ne6 {[%clk
0:00:40.9]} 28. Qd5 {[%clk 0:00:32.3]} 28... Qxd5 {[%clk 0:00:35.4]} 29. Bxd5
{[%clk 0:00:33.2]} 29... Nf4+ {[%clk 0:00:36.1]} 30. exf4 {[%clk 0:00:33.2]}
30... exf4+ {[%clk 0:00:37]} 31. Re3 {[%clk 0:00:28.9]} 31... fxe3 {[%clk
0:00:37.9]} 32. fxe3 {[%clk 0:00:29.8]} 32... Rc5 {[%clk 0:00:36.9]} 33. Bc4
{[%clk 0:00:27.7]} 33... Rxh5 {[%clk 0:00:37]} 34. Rf1 {[%clk 0:00:28.3]} 34...
Rh2+ {[%clk 0:00:34.9]} 35. Kd1 {[%clk 0:00:27.8]} 35... Re7 {[%clk 0:00:33.9]}
36. Be5 {[%clk 0:00:23.9]} 36... Rxe5 {[%clk 0:00:18.4]} 37. Rxf7 {[%clk
0:00:23.4]} 37... Rc5 {[%clk 0:00:19]} 38. Rf4+ {[%clk 0:00:14.7]} 38... Rxc4
{[%clk 0:00:19]} 39. Rxc4 {[%clk 0:00:15.6]} 39... h5 {[%clk 0:00:19.3]} 40. Rc7
{[%clk 0:00:15.3]} 40... a5 {[%clk 0:00:17.6]} 0-1